[Event "Lviv Tradition January 2019"]
[Site "Lviv"]
[Date "2019.01.29"]
[Round "5"]
[White "Taranenko, Evgueniy"]
[Black "Sevostianov, Pavel"]
[Result "0-1"]
[ECO "A00"]
[WhiteElo "2218"]
[BlackElo "2258"]
[Annotator "NA"]
[PlyCount "78"]
[EventDate "2019.01.27"]
[EventType "schev"]
[EventCountry "UKR"]
[SourceTitle "playchess.com"]
[Source "ChessBase"]
[SourceQuality "1"]
[TimeControl "5400+30"]

1. Nc3 {[%emt 0:01:19]} Nc6 {[%emt 0:01:21]} 2. a3 {[%emt 0:00:32]} e5 {[%emt 0:00:33]} 3. e3 {[%emt 0:00:06]} g6 {[%emt 0:02:46]} 4. d4 {[%emt 0:00:26]} d6 {[%emt 0:00:10]} 5. Nf3 {[%emt 0:05:18]} Bg7 {[%emt 0:00:19]} 6. Bb5 {[%emt 0:00:45]} Bd7 {[%emt 0:00:21]} 7. O-O {[%emt 0:00:50]} a6 {[%emt 0:01:19]} 8. Ba4 {[%emt 0:00:43]} Nge7 {[%emt 0:00:46]} 9. d5 {[%emt 0:06:32]} Nb8 {[%emt 0:02:31]} 10. e4 {[%emt 0:00:45]} b5 {[%emt 0:01:24]} 11. Bb3 {[%emt 0:01:25]} O-O {[%emt 0:00:08]} 12. Be3 {[%emt 0:08:45]} h6 {[%emt 0:00:44]} 13. Ne1 {[%emt 0:15:11]} f5 {[%emt 0:00:58]} 14. exf5 {[%emt 0:00:13]} gxf5 {[%emt 0:01:22]} 15. f4 {[%emt 0:00:12]} Ng6 {[%emt 0:02:37]} 16. Nf3 {[%emt 0:10:37]} e4 {[%emt 0:03:45]} 17. Nd4 {[%emt 0:00:18]} Kh7 {[%emt 0:01:15]} 18. Nce2 {[%emt 0:08:37]} a5 {[%emt 0:02:45]} 19. c4 {[%emt 0:02:32]} a4 {[%emt 0:00:19]} 20. Ba2 {[%emt 0:00:11]} bxc4 {[%emt 0:00:04]} 21. Bxc4 {[%emt 0:00:10]} Na6 {[%emt 0:00:12]} 22. Ng3 {[%emt 0:04:42]} Nc5 {[%emt 0:01:10]} 23. Qe2 {[%emt 0:03:17]} Rb8 {[%emt 0:00:48]} 24. Rab1 {[%emt 0:00:30]} Qe8 {[%emt 0:01:24]} 25. Qh5 {[%emt 0:01:08]} Qf7 {[%emt 0:07:19]} 26. Qe2 {[%emt 0:02:26]} Rg8 {[%emt 0:01:49]} 27. Nc6 {[%emt 0:01:39]} Bxc6 {[%emt 0:04:45]} 28. dxc6 {[%emt 0:00:28]} d5 {[%emt 0:00:32]} 29. Bxc5 {[%emt 0:00:10]} dxc4 {[%emt 0:00:04]} 30. Nh5 {[%emt 0:06:44]} Qd5 {[%emt 0:01:34]} 31. Bb4 {[%emt 0:00:43]} Qd3 {[%emt 0:00:33]} 32. Qe1 {[%emt 0:02:34]} Rbd8 {[%emt 0:23:04]} 33. Rd1 {[%emt 0:05:56]} Qc2 {[%emt 0:00:27]} 34. Bc3 {[%emt 0:05:02]} Nh4 {[%emt 0:04:13]} 35. Rd2 {[%emt 0:04:56]} Rxd2 {[%emt 0:01:59]} 36. Bxd2 {[%emt 0:01:29]} Bd4+ {[%emt 0:06:19]} 37. Kh1 {[%emt 0:00:01]} Nxg2 {[%emt 0:00:38]} 38. Qc1 {[%emt 0:01:09]} Qd3 {[%emt 0:03:43]} 39. Rd1 {[%emt 0:00:37]} Ne1 {[%emt 0:00:50]} 0-1

[Event "Lviv Tradition January 2019"]
[Site "Lviv"]
[Date "2019.01.29"]
[Round "5"]
[White "Kyrychenko, Maryan"]
[Black "Shkuran, Danylo"]
[Result "1/2-1/2"]
[ECO "B43"]
[WhiteElo "2207"]
[BlackElo "2359"]
[Annotator "NA"]
[PlyCount "60"]
[EventDate "2019.01.27"]
[EventType "schev"]
[EventCountry "UKR"]
[SourceTitle "playchess.com"]
[Source "ChessBase"]
[SourceQuality "1"]
[TimeControl "5400+30"]

1. e4 {[%emt 0:00:00]} c5 {[%emt 0:03:56]} 2. Nf3 {[%emt 0:00:00]} e6 {[%emt 0:00:04]} 3. d4 {[%emt 0:00:00]} cxd4 {[%emt 0:00:03]} 4. Nxd4 {[%emt 0:00:00]} a6 {[%emt 0:00:06]} 5. Nc3 {[%emt 0:00:00]} Qc7 {[%emt 0:00:04]} 6. Qd3 {[%emt 0:00:00]} Nc6 {[%emt 0:03:00]} 7. Nxc6 {[%emt 0:00:01]} bxc6 {[%emt 0:02:00]} 8. Qg3 {[%emt 0:00:05]} Qxg3 {[%emt 0:05:40]} 9. hxg3 {[%emt 0:00:04]} d5 {[%emt 0:00:25]} 10. Na4 {[%emt 0:00:04]} Bb7 {[%emt 0:04:59]} 11. Bf4 {[%emt 0:01:01]} Rd8 {[%emt 0:02:04]} 12. Nb6 {[%emt 0:04:32]} Bc5 {[%emt 0:20:22]} 13. Bc7 {[%emt 0:00:15]} Bxb6 {[%emt 0:00:09]} 14. Bxb6 {[%emt 0:00:02]} Rc8 {[%emt 0:02:16]} 15. Bd3 {[%emt 0:04:34]} Nf6 {[%emt 0:01:28]} 16. exd5 {[%emt 0:01:19]} cxd5 {[%emt 0:03:17]} 17. Bd4 {[%emt 0:00:07]} Ke7 {[%emt 0:06:46]} 18. b4 {[%emt 0:01:59]} h5 {[%emt 0:15:02]} 19. a4 {[%emt 0:00:43]} g6 {[%emt 0:01:36]} 20. b5 {[%emt 0:14:45]} Ra8 {[%emt 0:05:49]} 21. Kd2 {[%emt 0:00:48]} Rhc8 {[%emt 0:00:56]} 22. f3 {[%emt 0:04:02]} Nd7 {[%emt 0:00:20]} 23. Rhe1 {[%emt 0:02:14]} Kd6 {[%emt 0:00:53]} 24. f4 {[%emt 0:00:54]} axb5 {[%emt 0:06:03]} 25. axb5 {[%emt 0:00:02]} Nc5 {[%emt 0:00:08]} 26. Be5+ {[%emt 0:01:42]} Kd7 {[%emt 0:00:34]} 27. Bd4 {[%emt 0:00:09]} Nxd3 {[%emt 0:00:52]} 28. Kxd3 {[%emt 0:00:08]} Rxa1 {[%emt 0:00:13]} 29. Rxa1 {[%emt 0:00:02]} Ra8 {[%emt 0:00:06]} 30. Rxa8 {[%emt 0:00:09]} Bxa8 {[%emt 0:00:03] Ke4} 1/2-1/2

[Event "Lviv Tradition January 2019"]
[Site "Lviv"]
[Date "2019.01.29"]
[Round "5"]
[White "Gavrish, Leonid"]
[Black "Siniauski, Artsiom"]
[Result "0-1"]
[ECO "E48"]
[WhiteElo "2149"]
[BlackElo "2182"]
[Annotator "NA"]
[PlyCount "104"]
[EventDate "2019.01.27"]
[EventType "schev"]
[EventCountry "UKR"]
[SourceTitle "playchess.com"]
[Source "ChessBase"]
[SourceQuality "1"]
[TimeControl "5400+30"]

1. d4 {[%emt 0:03:31]} Nf6 {[%emt 0:00:00]} 2. c4 {[%emt 0:00:17]} e6 {[%emt 0:00:00]} 3. Nc3 {[%emt 0:00:28]} Bb4 {[%emt 0:00:00]} 4. e3 {[%emt 0:00:05]} O-O {[%emt 0:00:07]} 5. Bd3 {[%emt 0:00:03]} d5 {[%emt 0:00:09]} 6. cxd5 {[%emt 0:00:06]} exd5 {[%emt 0:00:03]} 7. Nge2 {[%emt 0:00:05]} Re8 {[%emt 0:00:10]} 8. a3 {[%emt 0:00:06]} Bd6 {[%emt 0:01:51]} 9. Nb5 {[%emt 0:00:08]} Bf8 {[%emt 0:00:13]} 10. O-O {[%emt 0:00:10]} b6 {[%emt 0:00:45]} 11. Qc2 {[%emt 0:01:47]} c6 {[%emt 0:01:10]} 12. Nbc3 {[%emt 0:00:11]} c5 {[%emt 0:00:27]} 13. dxc5 {[%emt 0:01:29]} bxc5 {[%emt 0:00:16]} 14. Rd1 {[%emt 0:00:40]} Bb7 {[%emt 0:02:35]} 15. Bb5 {[%emt 0:05:35]} Re6 {[%emt 0:07:53]} 16. Nf4 {[%emt 0:00:50]} Rd6 {[%emt 0:00:52]} 17. Bf1 {[%emt 0:06:36]} Nbd7 {[%emt 0:04:39]} 18. b4 {[%emt 0:03:40]} a6 {[%emt 0:10:18]} 19. Bb2 {[%emt 0:05:48]} Rc8 {[%emt 0:04:15]} 20. Qb3 {[%emt 0:04:38]} c4 {[%emt 0:06:24]} 21. Qc2 {[%emt 0:02:11]} a5 {[%emt 0:00:17]} 22. Na4 {[%emt 0:05:45]} Ne4 {[%emt 0:08:21]} 23. f3 {[%emt 0:06:51]} Ng5 {[%emt 0:06:58]} 24. Bd4 {[%emt 0:03:25]} Ne6 {[%emt 0:03:08]} 25. Nxe6 {[%emt 0:00:20]} fxe6 {[%emt 0:00:10]} 26. f4 {[%emt 0:02:47]} axb4 {[%emt 0:03:04]} 27. axb4 {[%emt 0:00:19]} Ra6 {[%emt 0:00:12]} 28. Qc3 {[%emt 0:07:25]} Rca8 {[%emt 0:01:28]} 29. Nc5 {[%emt 0:00:53]} Nxc5 {[%emt 0:00:10]} 30. bxc5 {[%emt 0:00:32]} Qc7 {[%emt 0:00:34]} 31. Rxa6 {[%emt 0:00:33]} Rxa6 {[%emt 0:00:19]} 32. Rb1 {[%emt 0:01:34]} Rc6 {[%emt 0:07:04]} 33. Be5 {[%emt 0:13:13]} Qd7 {[%emt 0:01:52]} 34. Qb4 {[%emt 0:02:04]} Bc8 {[%emt 0:00:16]} 35. Bd4 {[%emt 0:04:46]} Qc7 {[%emt 0:00:29]} 36. g3 {[%emt 0:02:29]} Bxc5 {[%emt 0:00:46]} 37. Qc3 {[%emt 0:00:06]} Bxd4 {[%emt 0:01:13]} 38. exd4 {[%emt 0:00:32]} Rb6 {[%emt 0:00:34]} 39. Qa5 {[%emt 0:02:11]} Rb7 {[%emt 0:00:19]} 40. Qxc7 {[%emt 0:00:22]} Rxc7 {[%emt 0:00:04]} 41. Kf2 {[%emt 0:00:15]} Kf7 {[%emt 0:00:37]} 42. Ke3 {[%emt 0:00:18]} Ra7 {[%emt 0:00:21]} 43. f5 {[%emt 0:01:11]} exf5 {[%emt 0:00:54]} 44. Kf4 {[%emt 0:00:08]} Kf6 {[%emt 0:00:32]} 45. Rb6+ {[%emt 0:00:14]} Be6 {[%emt 0:00:08]} 46. h4 {[%emt 0:00:20]} g6 {[%emt 0:02:39]} 47. Bg2 {[%emt 0:11:06]} Ra5 {[%emt 0:00:52]} 48. Rc6 {[%emt 0:00:18]} h6 {[%emt 0:00:22]} 49. Bf3 {[%emt 0:00:53]} Ra3 {[%emt 0:00:49]} 50. g4 {[%emt 0:01:09]} g5+ {[%emt 0:00:09]} 51. hxg5+ {[%emt 0:00:13]} hxg5+ {[%emt 0:00:07]} 52. Kg3 {[%emt 0:00:34]} fxg4 {[%emt 0:00:07]} 0-1

[Event "Lviv Tradition January 2019"]
[Site "Lviv"]
[Date "2019.01.30"]
[Round "6"]
[White "Sevostianov, Pavel"]
[Black "Terletsky, Oleg"]
[Result "1/2-1/2"]
[ECO "A16"]
[WhiteElo "2258"]
[BlackElo "2197"]
[Annotator "NA RC"]
[PlyCount "120"]
[EventDate "2019.01.27"]
[EventType "schev"]
[EventCountry "UKR"]
[SourceTitle "playchess.com"]
[Source "ChessBase"]
[SourceQuality "1"]
[TimeControl "5400+30"]

{[%evp 8,120,26,32767,32767,9,24,8,49,15,78,16,35,40,32767,32,37,16,37,32767,-10,-34,5,-7,-18,32767,32767,14,32767,32767,32767,50,51,51,32767,32767,82,32767,32767,52,100,81,80,83,84,32767,102,84,78,47,75,83,81,72,80,75,75,59,32767,32767,32767,28,21,22,15,17,32767,0,32767,76,73,70,80,52,50,41,33,23,28,0,32767,14,27,0,27,18,18,17,62,67,60,66,32767,62,60,34,30,32767,23,37,32767,23,32767,7,32767,32767,32767,32767,6,0,9,15,7,0,14]} 1. c4 {[%emt 0:00:00]} Nf6 {[%emt 0:00:00]} 2. Nc3 {[%emt 0:00:00]} g6 {[%emt 0:00:00]} 3. g3 {[%emt 0:00:21]} Bg7 {[%emt 0:00:00]} 4. Bg2 {[%emt 0:00:05]} d6 {[%emt 0:00:00]} 5. e3 {[%emt 0:01:03]} e5 {[%emt 0:00:00]} 6. Nge2 {[%emt 0:00:21]} Nc6 {[%emt 0:00:03]} 7. O-O {[%emt 0:00:23] LiveBook: 48 Games} Be6 {[%emt 0:00:04]} 8. d4 {[%emt 0:04:36]} Bd7 {[%emt 0:04:38]} (8... Bxc4 $11 {remains equal.} 9. d5 Ne7) 9. h3 {[%emt 0:01:20]} O-O {[%emt 0:00:27]} 10. b3 {[%emt 0:02:03]} Nh5 {[%emt 0:02:59] E61: King's Indian: Early deviations for White, including Smyslov System} (10... Re8 11. d5 Ne7 12. Bb2 c5 13. dxc6 Bxc6 14. e4 a6 15. a4 a5 16. Ba3 Nc8 17. Qc2 h5 18. Rad1 {1-0 (33) Magalashvili,D (2447)-Babaev,R (2449) Baku 2005}) 11. d5 {[%emt 0:06:41]} Ne7 {[%emt 0:00:36]} 12. g4 {[%emt 0:00:04]} Nf6 {[%emt 0:00:05]} 13. f4 $146 {[%emt 0:00:39]} ({Predecessor:} 13. Ng3 Ne8 14. Bb2 f5 15. gxf5 Nxf5 16. Nce4 {0-1 (30) Walter,F-Metz,H Eppingen 1988}) 13... exf4 {[%emt 0:01:33]} 14. exf4 {[%emt 0:00:07]} h5 {[%emt 0:00:07]} 15. g5 {[%emt 0:02:19]} Nh7 {[%emt 0:00:26]} 16. Be3 {[%emt 0:02:04]} Qc8 {[%emt 0:00:40]} 17. Kh2 {[%emt 0:01:06]} Nf5 {[%emt 0:00:58]} 18. Bf2 {[%emt 0:00:14]} f6 {[%emt 0:02:11]} 19. h4 {[%emt 0:00:19]} fxg5 {[%emt 0:00:29]} 20. hxg5 {[%emt 0:00:04]} a6 {[%emt 0:02:34]} 21. Rc1 {[%emt 0:00:26]} b5 {[%emt 0:01:08]} 22. Ne4 {[%emt 0:00:25]} bxc4 {[%emt 0:01:27]} 23. bxc4 {[%emt 0:00:30]} Qd8 {[%emt 0:00:08]} 24. Rb1 {[%emt 0:02:47]} Rb8 {[%emt 0:06:00]} 25. Qd2 {[%emt 0:01:09]} Re8 {[%emt 0:09:27]} 26. Rb3 {[%emt 0:01:00]} Rxb3 {[%emt 0:04:13]} 27. axb3 {[%emt 0:00:01]} Re7 {[%emt 0:00:35]} 28. Nd4 {[%emt 0:05:22]} Qe8 {[%emt 0:08:26]} 29. Nxf5 {[%emt 0:12:44]} Bxf5 {[%emt 0:02:03] [#]} 30. Ng3 $1 {[%emt 0:00:59]} Bg4 {[%emt 0:01:58]} 31. Re1 {[%emt 0:00:54]} Rxe1 {[%emt 0:01:06]} 32. Bxe1 {[%emt 0:01:59]} a5 {[%emt 0:10:05]} 33. Bf2 {[%emt 0:01:43]} a4 {[%emt 0:01:43]} 34. bxa4 {[%emt 0:01:23]} Qxa4 {[%emt 0:00:02]} 35. Bf1 {[%emt 0:02:49]} Qa1 {[%emt 0:07:40]} 36. Bd3 {[%emt 0:01:01]} Nf8 {[%emt 0:05:23]} 37. Nf1 {[%emt 0:01:23]} Qd1 {[%emt 0:01:11]} 38. Qxd1 {[%emt 0:02:41]} Bxd1 {[%emt 0:00:04]} 39. Ne3 {[%emt 0:09:45]} Bb3 {[%emt 0:00:39]} 40. Ng2 {[%emt 0:00:26]} Bc3 {[%emt 0:00:29]} 41. Nh4 {[%emt 0:01:24]} Kf7 {[%emt 0:00:34]} 42. Kg3 {[%emt 0:00:26]} Bd2 {[%emt 0:00:26]} 43. Kf3 {[%emt 0:01:26]} Ba4 {[%emt 0:01:07]} 44. Ke4 {[%emt 0:05:19]} Bd7 {[%emt 0:00:08]} 45. Kf3 {[%emt 0:04:27]} c6 {[%emt 0:01:36]} 46. Bg3 {[%emt 0:03:11]} cxd5 {[%emt 0:00:21]} 47. cxd5 {[%emt 0:00:01]} Bc1 {[%emt 0:02:10]} 48. Be1 {[%emt 0:00:39]} Ba3 {[%emt 0:03:19]} 49. Bc3 {[%emt 0:00:23]} Bg4+ {[%emt 0:00:18]} 50. Kg3 {[%emt 0:00:13]} Bc5 {[%emt 0:00:56]} 51. Bf6 {[%emt 0:02:41]} Bb4 {[%emt 0:00:15]} 52. Bd4 {[%emt 0:03:30]} Be1+ {[%emt 0:00:18]} 53. Bf2 {[%emt 0:00:06]} Bd2 {[%emt 0:00:08]} 54. Be4 {[%emt 0:00:45]} Bc3 {[%emt 0:01:43]} 55. Kg2 {[%emt 0:01:23]} Bd2 {[%emt 0:00:55]} 56. Bg3 {[%emt 0:00:04]} Be3 {[%emt 0:00:46]} 57. Kf1 {[%emt 0:00:18]} Kg7 {[%emt 0:01:42]} 58. Kg2 {[%emt 0:02:27]} Kf7 {[%emt 0:00:07]} 59. Bh2 {[%emt 0:00:38]} Kg7 {[%emt 0:00:14]} 60. Bg3 $11 {[%emt 0:02:37]} Kf7 {[%emt 0:00:05]} 1/2-1/2

[Event "Lviv Tradition January 2019"]
[Site "Lviv"]
[Date "2019.01.30"]
[Round "6"]
[White "Taranenko, Evgueniy"]
[Black "Gavrish, Leonid"]
[Result "1-0"]
[ECO "A00"]
[WhiteElo "2218"]
[BlackElo "2149"]
[Annotator "ChessBase"]
[PlyCount "101"]
[EventDate "2019.01.27"]
[EventType "schev"]
[EventCountry "UKR"]
[SourceTitle "playchess.com"]
[Source "ChessBase"]
[SourceQuality "1"]
[TimeControl "5400+30"]

1. Nc3 {[%emt 0:00:00]} g6 {[%emt 0:00:00]} 2. e4 {[%emt 0:00:26]} Bg7 {[%emt 0:00:01]} 3. f4 {[%emt 0:00:05]} d6 {[%emt 0:00:22]} 4. Bc4 {[%emt 0:00:09]} Nf6 {[%emt 0:00:12]} 5. d3 {[%emt 0:00:04]} O-O {[%emt 0:00:13]} 6. Nf3 {[%emt 0:00:03]} c6 {[%emt 0:00:50]} 7. a3 {[%emt 0:00:09]} d5 {[%emt 0:00:16]} 8. Ba2 {[%emt 0:00:03]} dxe4 {[%emt 0:02:24]} 9. dxe4 {[%emt 0:00:04]} Qxd1+ {[%emt 0:00:12]} 10. Kxd1 {[%emt 0:00:04]} Ng4 {[%emt 0:05:01]} 11. Ke2 {[%emt 0:00:55]} Bxc3 {[%emt 0:00:22]} 12. bxc3 {[%emt 0:00:05]} b6 {[%emt 0:01:02]} 13. Bc4 {[%emt 0:09:45]} Ba6 {[%emt 0:00:39]} 14. Bd3 {[%emt 0:00:22]} c5 {[%emt 0:00:49]} 15. e5 {[%emt 0:05:12]} f5 {[%emt 0:02:04]} 16. h3 {[%emt 0:07:51]} Nh6 {[%emt 0:01:47]} 17. Ke3 {[%emt 0:05:24]} Nf7 {[%emt 0:06:40]} 18. g4 {[%emt 0:06:13]} Nd8 {[%emt 0:02:00]} 19. gxf5 {[%emt 0:05:07]} gxf5 {[%emt 0:00:18]} 20. Rg1+ {[%emt 0:03:50]} Kh8 {[%emt 0:00:14]} 21. Rg5 {[%emt 0:05:53]} e6 {[%emt 0:03:20]} 22. Bd2 {[%emt 0:01:39]} Nf7 {[%emt 0:00:55]} 23. Rh5 {[%emt 0:04:19]} Rg8 {[%emt 0:02:38]} 24. h4 {[%emt 0:04:10]} Rg6 {[%emt 0:16:13]} 25. Ng5 {[%emt 0:01:25]} Nh6 {[%emt 0:00:20]} 26. Rg1 {[%emt 0:13:06]} Bxd3 {[%emt 0:09:27]} 27. Rxh6 {[%emt 0:00:31]} Bc4 {[%emt 0:00:56]} 28. Nf7+ {[%emt 0:09:11]} Kg7 {[%emt 0:10:27]} 29. Rhxg6+ {[%emt 0:00:09]} hxg6 {[%emt 0:00:10]} 30. Nd6 {[%emt 0:00:03]} Bd5 {[%emt 0:00:10]} 31. Ne8+ {[%emt 0:00:30]} Kh6 {[%emt 0:00:11]} 32. Nc7 {[%emt 0:00:03]} Nd7 {[%emt 0:03:07]} 33. Nxa8 {[%emt 0:01:04]} Bxa8 {[%emt 0:00:02]} 34. c4 {[%emt 0:02:08]} Be4 {[%emt 0:00:48]} 35. Rc1 {[%emt 0:01:34]} Nb8 {[%emt 0:02:14]} 36. Bc3 {[%emt 0:00:36]} Nd7 {[%emt 0:01:47]} 37. Rd1 {[%emt 0:00:21]} Nf8 {[%emt 0:00:12]} 38. Rd8 {[%emt 0:01:31]} Kg7 {[%emt 0:00:13]} 39. Rc8 {[%emt 0:00:59]} a6 {[%emt 0:02:18]} 40. Rc7+ {[%emt 0:00:43]} Kg8 {[%emt 0:04:15]} 41. Be1 {[%emt 0:02:34]} Bxc2 {[%emt 0:11:18]} 42. Rc6 {[%emt 0:01:55]} Bb3 {[%emt 0:00:10]} 43. Kd3 {[%emt 0:01:28]} b5 {[%emt 0:03:59]} 44. cxb5 {[%emt 0:00:07]} Ba4 {[%emt 0:02:07]} 45. Rxc5 {[%emt 0:00:54]} axb5 {[%emt 0:00:47]} 46. Rc7 {[%emt 0:01:46]} b4 {[%emt 0:03:44]} 47. Bxb4 {[%emt 0:00:21]} Nd7 {[%emt 0:00:09]} 48. Ra7 {[%emt 0:01:17]} Nb6 {[%emt 0:01:33]} 49. Kd4 {[%emt 0:00:54]} Bb3 {[%emt 0:01:07]} 50. Be7 {[%emt 0:02:51]} Nd5 {[%emt 0:00:19]} 51. Bg5 {[%emt 0:00:20]} 1-0

[Event "Lviv Tradition January 2019"]
[Site "Lviv"]
[Date "2019.01.30"]
[Round "7"]
[White "Kagramanianz, Vartan"]
[Black "Taranenko, Evgueniy"]
[Result "1/2-1/2"]
[ECO "A14"]
[WhiteElo "2246"]
[BlackElo "2218"]
[Annotator "NA"]
[PlyCount "65"]
[EventDate "2019.01.27"]
[EventType "schev"]
[EventCountry "UKR"]
[SourceTitle "playchess.com"]
[Source "ChessBase"]
[SourceQuality "1"]
[TimeControl "5400+30"]

1. c4 {[%emt 0:00:00]} e6 {[%emt 0:00:06]} 2. g3 {[%emt 0:01:06]} d5 {[%emt 0:00:11]} 3. Bg2 {[%emt 0:01:43]} Nf6 {[%emt 0:00:26]} 4. Nf3 {[%emt 0:00:22]} Be7 {[%emt 0:00:25]} 5. O-O {[%emt 0:00:07]} O-O {[%emt 0:00:06]} 6. d4 {[%emt 0:00:33]} c5 {[%emt 0:00:14]} 7. dxc5 {[%emt 0:02:23]} Bxc5 {[%emt 0:00:12]} 8. Nbd2 {[%emt 0:02:05]} Nc6 {[%emt 0:02:05]} 9. Nb3 {[%emt 0:04:53]} Bb6 {[%emt 0:02:03]} 10. cxd5 {[%emt 0:00:31]} exd5 {[%emt 0:00:04]} 11. Nbd4 {[%emt 0:01:05]} Re8 {[%emt 0:01:18]} 12. b3 {[%emt 0:11:44]} Bg4 {[%emt 0:01:38]} 13. Bb2 {[%emt 0:02:03]} Qd7 {[%emt 0:02:34]} 14. Nxc6 {[%emt 0:06:35]} bxc6 {[%emt 0:00:30]} 15. Bxf6 {[%emt 0:02:12]} gxf6 {[%emt 0:00:06]} 16. e3 {[%emt 0:01:27]} Rad8 {[%emt 0:03:21]} 17. b4 {[%emt 0:07:11]} Qe7 {[%emt 0:10:50]} 18. Qb3 {[%emt 0:06:46]} Rb8 {[%emt 0:01:37]} 19. Qc3 {[%emt 0:01:44]} Rec8 {[%emt 0:07:30]} 20. Rac1 {[%emt 0:05:36]} c5 {[%emt 0:09:54]} 21. bxc5 {[%emt 0:00:12]} Bxc5 {[%emt 0:00:00]} 22. Qd2 {[%emt 0:00:33]} Bb4 {[%emt 0:16:55]} 23. Qd3 {[%emt 0:01:02]} Rxc1 {[%emt 0:04:41]} 24. Rxc1 {[%emt 0:00:56]} Qe4 {[%emt 0:00:05]} 25. Qxe4 {[%emt 0:04:39]} dxe4 {[%emt 0:00:02]} 26. Nd4 {[%emt 0:00:06]} Bd2 {[%emt 0:04:53]} 27. Ra1 {[%emt 0:00:13]} Bc3 {[%emt 0:02:04]} 28. Rc1 {[%emt 0:00:06]} Bd2 {[%emt 0:00:02]} 29. Ra1 {[%emt 0:00:04]} Bc3 {[%emt 0:00:05]} 30. Rc1 {[%emt 0:00:04]} Bd2 {[%emt 0:00:02]} 31. Rf1 Rb2 32. Bxe4 Rxa2 33. Bg2 1/2-1/2

[Event "Lviv Tradition January 2019"]
[Site "Lviv"]
[Date "2019.01.30"]
[Round "7"]
[White "Prydun, Andriy"]
[Black "Boricsev, Oleg"]
[Result "1-0"]
[ECO "D30"]
[WhiteElo "2218"]
[BlackElo "2297"]
[Annotator "NA"]
[PlyCount "107"]
[EventDate "2019.01.27"]
[EventType "schev"]
[EventCountry "UKR"]
[SourceTitle "playchess.com"]
[Source "ChessBase"]
[SourceQuality "1"]
[TimeControl "5400+30"]

1. d4 {[%emt 0:00:00]} d5 $146 {[%emt 0:04:47]} (1... e6 2. c4 Bb4+ 3. Bd2 Bxd2+ 4. Qxd2 Nf6 5. Nc3 d5 6. e3 O-O {0-1 (32) Swapnil,S (2487)-Aravindh,C (2581) Abu Dhabi 2018}) ({Predecessor:} 1... Nf6 2. c4 e6 3. Nf3 Bb4+ 4. Bd2 Bxd2+ 5. Qxd2 O-O 6. Nc3 d5 {0-1 (78) Lye,L (1714)-Lu,J Taipa 2014}) 2. c4 {[%emt 0:00:00]} e6 {[%emt 0:00:05]} 3. Nf3 {[%emt 0:00:00]} Nf6 {[%emt 0:00:05]} 4. e3 {[%emt 0:00:58]} Bb4+ {[%emt 0:00:36]} 5. Bd2 {[%emt 0:00:24]} Bxd2+ {[%emt 0:00:20]} 6. Qxd2 {[%emt 0:00:18]} O-O {[%emt 0:00:17]} 7. Nc3 {[%emt 0:00:44]} b6 {[%emt 0:00:22]} 8. Bd3 {[%emt 0:03:03] E11: Bogo-Indian} (8. cxd5 exd5 9. Bd3 c5 10. b3 Bb7 11. O-O Nbd7 12. Rfd1 Qe7 13. Rac1 g6 14. Qe2 a6 15. h3 Rfe8 16. Qf1 Rec8 {0-1 (32) Swapnil,S (2487)-Aravindh,C (2581) Abu Dhabi 2018}) 8... dxc4 {[%emt 0:01:02]} 9. Bxc4 {[%emt 0:00:05]} Bb7 {[%emt 0:00:08]} 10. Qe2 {[%emt 0:00:06]} Ne4 {[%emt 0:02:17]} ({Predecessor:} 10... Qe7 11. O-O Rd8 12. Rfd1 Nc6 13. d5 exd5 14. Nxd5 Nxd5 15. Bxd5 Kh8 {0-1 (78) Lye,L (1714)-Lu,J Taipa 2014}) 11. O-O {[%emt 0:00:36]} Nxc3 {[%emt 0:01:25]} 12. bxc3 {[%emt 0:00:05]} Nd7 {[%emt 0:00:11]} 13. e4 {[%emt 0:01:43]} Qe7 {[%emt 0:00:32]} 14. Rfe1 {[%emt 0:05:38]} e5 {[%emt 0:02:52]} 15. Rad1 {[%emt 0:04:30]} Rad8 {[%emt 0:00:31]} 16. Ba6 {[%emt 0:04:08]} Ba8 {[%emt 0:00:59]} 17. Bb5 {[%emt 0:19:12]} c6 {[%emt 0:01:07]} 18. Ba4 {[%emt 0:05:10]} Rfe8 {[%emt 0:01:26]} 19. h3 {[%emt 0:01:58]} h6 {[%emt 0:01:08]} 20. Qb2 {[%emt 0:11:05]} Bb7 {[%emt 0:05:52]} 21. Qc1 {[%emt 0:08:36]} b5 {[%emt 0:17:03]} 22. Bc2 {[%emt 0:02:59]} c5 {[%emt 0:04:26]} 23. Qb2 {[%emt 0:00:38]} a6 {[%emt 0:01:58]} 24. a4 {[%emt 0:08:28]} exd4 {[%emt 0:02:54]} 25. cxd4 {[%emt 0:00:12]} b4 {[%emt 0:00:48]} 26. d5 {[%emt 0:07:12]} Nb6 {[%emt 0:02:16]} 27. a5 {[%emt 0:01:37]} Nc4 {[%emt 0:00:11]} 28. Qa2 {[%emt 0:00:06]} Ne5 {[%emt 0:00:43]} 29. Nxe5 {[%emt 0:00:24]} Qxe5 {[%emt 0:00:07]} 30. Qc4 {[%emt 0:00:09]} Qc7 {[%emt 0:04:31]} 31. Bb3 {[%emt 0:00:38]} Qxa5 {[%emt 0:01:20]} 32. d6 {[%emt 0:01:00]} Rf8 {[%emt 0:00:07]} 33. e5 {[%emt 0:02:03]} Bc8 {[%emt 0:01:53]} 34. Qe4 {[%emt 0:04:26]} Be6 {[%emt 0:01:16]} 35. Bc2 {[%emt 0:01:16]} g6 {[%emt 0:00:17]} 36. Qf4 {[%emt 0:01:49]} b3 {[%emt 0:01:51]} 37. Bb1 {[%emt 0:00:04]} Kh7 {[%emt 0:01:12]} 38. Re4 {[%emt 0:03:50]} c4 {[%emt 0:01:33]} 39. Qe3 {[%emt 0:00:04]} Rh8 {[%emt 0:01:28]} 40. Rh4 {[%emt 0:00:42]} Kg7 {[%emt 0:00:11]} 41. Qf4 {[%emt 0:00:43]} Rd7 {[%emt 0:18:38]} 42. Qf6+ {[%emt 0:00:20]} Kg8 {[%emt 0:00:06]} 43. Bxg6 {[%emt 0:00:37]} Qd8 {[%emt 0:00:08]} 44. Bxf7+ {[%emt 0:00:27]} Rxf7 {[%emt 0:03:01]} 45. Qxd8+ {[%emt 0:00:07]} Kg7 {[%emt 0:00:10]} 46. Qa5 {[%emt 0:01:03]} Rb8 {[%emt 0:00:47]} 47. d7 {[%emt 0:00:58]} b2 {[%emt 0:03:12]} 48. d8=Q {[%emt 0:00:28]} Rxd8 {[%emt 0:00:20]} 49. Qxd8 {[%emt 0:00:15]} c3 {[%emt 0:00:23]} 50. Qd3 {[%emt 0:02:13]} Rd7 {[%emt 0:00:35]} 51. Qg3+ {[%emt 0:00:12]} Kh7 {[%emt 0:00:40]} 52. Rxd7+ {[%emt 0:00:14]} Bxd7 {[%emt 0:00:29]} 53. Qd3+ {[%emt 0:00:21]} Kg8 {[%emt 0:00:22]} 54. Rb4 {[%emt 0:00:36] Kh7} 1-0